bitfinex-derivatives/quotes_ETHF0:USTF0_20260102
["timestamp","ask_amount","ask_price","bid_price","bid_amount"]
[1767373157696,0.41780319,3135.9,3133.9,0.16818582]
[1767373157905,0.41781319,3135.8,3133.9,4.39275471]
[1767373158200,0.25826319,3135.6,3133.9,0.00375471]
[1767373158504,0.26156092,3135.6,3134.4,0.00478331]
[1767373159296,0.25826319,3135.2,3133.9,0.00375471]
[1767373159996,0.15958,3135.1,3133.9,0.00375471]
[1767373160203,0.15958,3135.1,3132.9,0.15969]
[1767373160204,0.25826319,3134.9,3132.9,0.15969]
[1767373160596,0.41785319,3134.9,3132.9,0.15969]
[1767373160796,0.25826319,3134.8,3132.9,0.15969]
[1767373161208,0.25826319,3134.8,3133.5,0.00478331]
[1767373161508,0.41786319,3134.8,3133.5,0.00478331]
[1767373161804,0.25826319,3134.7,3133.5,0.00478331]
[1767373165008,0.41786319,3134.7,3133.5,0.00478331]
[1767373166907,0.2712255,3134.6,3133.5,0.00478331]
[1767373167910,0.2712255,3134.4,3133.5,0.00478331]
[1767373168515,0.15961,3134.5,3133.5,0.00478331]
[1767373169013,0.2712255,3134.9,3133.5,0.00478331]
[1767373171514,0.00475733,3135.3,3133.5,0.00478331]
[1767373171817,0.2690541,3135.3,3133.5,0.00478331]
[1767373172010,0.26429677,3134.4,3133.5,0.00478331]
[1767373174409,0.26429677,3135.0,3133.5,0.00478331]
[1767373174609,0.26429677,3134.8,3133.5,0.00478331]
[1767373175510,0.26429677,3134.6,3133.5,0.00478331]
[1767373175910,0.26429677,3134.6,3132.9,0.00385855]
[1767373176605,0.26429677,3134.4,3132.9,0.00385855]
[1767373177006,0.26429677,3133.8,3132.9,0.00385855]
[1767373178018,0.00478331,3133.7,3133.0,0.00478331]
[1767373178321,0.26908008,3133.7,3132.9,0.00385855]
[1767373179422,0.26908008,3133.7,3133.0,0.00478331]
[1767373179922,0.26429677,3133.6,3132.0,2.77564337]
[1767373180123,0.26429677,3133.6,3131.9,2.77564337]
[1767373180723,0.26429677,3133.5,3131.8,2.77564337]
[1767373181127,0.26429677,3133.5,3132.3,0.00321489]
[1767373181427,0.15966,3133.6,3132.3,0.00321489]
[1767373181624,0.26429677,3133.5,3132.3,0.00321489]
[1767373182322,0.00478331,3133.7,3132.3,0.00321489]
[1767373182523,0.00478331,3133.7,3132.3,2.77885826]
[1767373182930,0.00478331,3133.7,3132.3,0.00321489]
[1767373183928,0.26908008,3133.7,3132.3,0.00321489]
[1767373184623,0.26908008,3133.7,3132.2,2.77564337]
[1767373184624,0.26429677,3133.1,3131.9,2.77564337]
[1767373184835,0.26429677,3132.9,3131.8,0.00300355]
[1767373186042,0.15969,3133.0,3131.8,0.00300355]
[1767373186541,0.42398677,3133.0,3131.8,0.00300355]
[1767373186738,0.26429677,3132.9,3131.8,0.00300355]
[1767373187243,0.00327987,3133.1,3131.8,0.00300355]
[1767373190233,0.00327987,3133.1,3131.8,2.77864692]
[1767373192041,0.00327987,3133.1,3131.8,0.00300355]
[1767373192744,0.00327987,3133.1,3131.8,2.77864692]
[1767373193339,0.00327987,3133.1,3131.8,0.00300355]
[1767373197549,0.00327987,3133.1,3131.8,0.42694478]
[1767373198348,0.00327987,3133.1,3131.8,0.16275355]
[1767373199040,0.26757664,3133.1,3131.8,0.16275355]
[1767373200047,0.00327987,3133.1,3131.8,0.16275355]
[1767373200348,0.2700738,3133.0,3131.8,0.00300355]
[1767373200548,0.1597,3132.9,3131.8,0.00300355]
[1767373200749,0.2700738,3133.0,3131.8,0.00300355]
[1767373201046,0.00327987,3133.1,3131.8,4.39000355]
[1767373201248,0.00327987,3133.1,3131.9,0.15974]
[1767373201451,0.00327987,3133.1,3131.9,0.27164569]
[1767373201744,0.00478331,3133.7,3131.9,4.37362763]
[1767373201951,0.00478331,3133.7,3132.2,0.15973]
[1767373202242,0.00478331,3133.7,3132.3,0.15972]
[1767373202444,0.00478331,3133.7,3132.5,0.15971]
[1767373202744,0.00343644,3133.7,3132.6,0.15971]
[1767373203242,0.2700738,3134.7,3133.3,2.77564337]
[1767373203443,0.2700738,3134.7,3133.0,2.77564337]
[1767373203654,0.27485711,3134.2,3133.5,0.00478331]
[1767373204051,0.2782928,3134.2,3133.5,0.00478331]
[1767373204346,0.008219,3134.2,3133.5,0.00478331]
[1767373204539,0.4296538,3135.2,3133.5,0.00478331]
[1767373204741,0.2700738,3135.1,3133.5,0.00478331]
[1767373204947,0.2700738,3135.6,3133.6,0.15966]
[1767373205151,0.2700738,3135.6,3133.9,2.93528337]
[1767373205346,0.2700738,3135.6,3134.1,0.15963]
[1767373205549,0.00478331,3135.2,3134.2,4.388]
[1767373206051,0.00478331,3135.2,3134.2,7.32327337]
[1767373206251,0.2700738,3136.1,3134.3,4.24682763]
[1767373206454,0.2700738,3136.1,3134.3,0.15962]
[1767373206658,0.2700738,3136.1,3134.3,2.93526337]
[1767373207158,0.2700738,3136.1,3134.4,4.39]
[1767373207348,0.00478331,3135.5,3134.1,2.7797467]
[1767373207655,0.2700738,3135.2,3133.2,2.77564337]
[1767373207950,0.2700738,3135.2,3133.0,4.39]
[1767373208947,0.2700738,3134.9,3133.5,0.00819131]
[1767373209648,0.2700738,3135.4,3133.5,0.00819131]
[1767373210045,0.2700738,3135.4,3133.5,0.279837]
[1767373210350,0.2700738,3135.4,3133.5,2.78383468]
[1767373210550,0.2700738,3135.4,3133.6,4.389]
[1767373210749,0.2700738,3135.4,3133.7,4.389]
[1767373211146,0.2700738,3135.4,3133.7,4.39]
[1767373212259,0.2700738,3135.4,3133.6,0.15966]
[1767373212451,0.2700738,3135.4,3133.7,4.39]
[1767373212756,0.2700738,3135.4,3133.8,4.39]
[1767373213354,0.2700738,3135.4,3133.7,4.391]
[1767373213755,0.2700738,3135.4,3133.5,0.00819131]
[1767373213962,0.2700738,3135.1,3133.5,4.39919131]
[1767373214559,0.2700738,3135.1,3133.5,0.00819131]
[1767373214755,0.2700738,3134.9,3133.5,0.00819131]
[1767373217765,0.2700738,3135.4,3133.5,0.00819131]
[1767373217969,0.2700738,3135.4,3133.6,0.15966]
[1767373218569,0.2700738,3135.4,3133.5,0.00819131]
[1767373218570,0.00478331,3135.5,3133.9,0.15964]
[1767373218868,0.00478331,3135.5,3134.2,0.15963]
[1767373219056,0.00478331,3135.5,3133.8,3.46364569]
[1767373219057,0.27485711,3135.5,3133.6,7.12356642]
[1767373219257,0.27485711,3135.5,3133.5,0.00819131]
[1767373219258,0.2700738,3135.3,3133.5,0.00819131]
[1767373219459,0.2700738,3135.2,3133.5,0.00819131]
[1767373219659,0.2700738,3135.1,3133.5,0.00819131]
[1767373221166,0.2700738,3135.1,3133.5,0.16785131]
[1767373222263,0.2700738,3134.8,3133.5,0.00819131]
[1767373222868,0.2700738,3135.4,3133.5,0.00819131]
[1767373223664,0.2700738,3135.3,3133.5,0.00819131]
[1767373224163,0.2700738,3134.9,3133.5,0.00819131]
[1767373226168,0.2700738,3134.1,3132.8,6.6784477]
[1767373226373,0.2700738,3133.9,3132.3,2.77564337]
[1767373226672,0.2700738,3133.8,3132.3,2.77564337]
[1767373226861,0.4297238,3133.8,3132.0,2.77564337]
[1767373227063,0.4297238,3133.8,3132.6,0.00478331]
[1767373227064,0.00478331,3133.2,3132.6,0.00478331]
[1767373228467,0.28781255,3133.2,3132.6,0.00478331]
[1767373229173,0.00478331,3133.2,3132.6,0.00478331]
[1767373230576,0.00478331,3133.2,3132.0,0.00335347]
[1767373230870,0.29008009,3133.2,3132.0,0.00335347]
[1767373231477,0.00478331,3133.2,3132.3,0.00478331]
[1767373234466,0.29008009,3133.2,3132.3,0.00478331]
[1767373235472,0.28529678,3133.0,3132.0,0.00335347]
[1767373235775,0.28529678,3132.8,3131.2,2.77564337]
[1767373236574,0.00478331,3133.2,3131.5,1.21069319]
[1767373236779,0.00478331,3133.2,3131.6,0.15976]
[1767373236980,0.00478331,3133.2,3131.6,2.93540337]
[1767373237581,0.00478331,3133.2,3131.9,0.15974]
[1767373237885,0.00478331,3133.2,3132.0,4.393]
[1767373238084,0.00478331,3133.2,3132.0,4.55274]
[1767373238281,0.00478331,3133.2,3132.0,7.32838337]
[1767373238481,0.00478331,3133.2,3132.0,4.55274]
[1767373239080,0.00285905,3133.8,3132.2,0.15973]
[1767373239272,0.00285905,3133.8,3132.5,0.15971]
[1767373240082,0.00478331,3133.5,3132.8,0.00478331]
[1767373240484,0.00285905,3133.8,3132.8,0.00478331]
[1767373241382,0.00478331,3133.6,3132.8,0.00478331]
[1767373244983,0.28529678,3134.5,3132.9,1.21069319]
[1767373245187,0.28529678,3134.5,3133.0,4.55869]
[1767373245386,0.28529678,3134.5,3133.0,0.15969]
[1767373245885,0.00478331,3134.1,3133.1,4.399]
[1767373246084,0.00715409,3134.1,3133.1,4.399]
[1767373246287,0.00715409,3134.1,3133.0,0.15969]
[1767373247394,0.00715409,3134.1,3132.9,4.399]
[1767373252395,0.29245087,3134.1,3132.9,4.399]
[1767373252691,0.29245087,3134.1,3132.8,0.00478331]
[1767373252986,0.00715409,3134.1,3132.8,0.00478331]
[1767373254291,0.00715409,3134.1,3132.8,2.78042668]
[1767373254692,0.00715409,3134.1,3132.9,2.77564337]
[1767373254898,0.00715409,3134.1,3133.0,2.77564337]
[1767373255293,0.44488678,3135.0,3133.1,2.77564337]
[1767373255596,0.44488678,3135.0,3133.3,2.77564337]
[1767373255987,0.44488678,3135.0,3133.4,1.37036319]
[1767373255988,0.28529678,3135.0,3133.4,1.37036319]
[1767373256189,0.28529678,3135.5,3133.7,2.93529337]
[1767373256395,0.00478331,3134.9,3133.9,2.77564337]
[1767373256589,0.00478331,3134.9,3134.1,0.00478331]
[1767373257299,0.28908901,3135.5,3134.1,2.78042668]
[1767373257695,0.28908901,3135.5,3134.1,0.00478331]
[1767373258296,0.00478331,3135.1,3134.1,0.00478331]
[1767373261103,0.28731787,3135.1,3134.1,0.00478331]
[1767373262001,0.00478331,3135.1,3134.1,0.00478331]
[1767373262605,0.00141459,3135.1,3134.1,2.78042668]
[1767373263102,0.00141459,3135.1,3134.1,0.00478331]
[1767373264005,0.44352915,3135.1,3134.1,0.00478331]
[1767373264297,0.28253456,3134.9,3133.7,0.0026497]
[1767373264497,0.28253456,3133.7,3132.3,6.6784477]
[1767373264706,0.00379223,3135.5,3132.3,6.6784477]
[1767373264707,0.28253456,3134.2,3132.3,3.90280433]
[1767373264898,0.28253456,3134.2,3132.4,2.77564337]
[1767373265098,0.28253456,3134.1,3132.4,2.77564337]
[1767373265299,0.00478331,3133.6,3133.0,0.00478331]
[1767373265500,0.28253456,3134.1,3133.0,0.00478331]
[1767373265501,0.28253456,3134.7,3133.0,0.00808692]
[1767373266606,0.00460351,3134.2,3133.0,0.00808692]
[1767373270011,0.28253456,3135.2,3133.0,1.49913205]
[1767373270303,0.28253456,3135.2,3133.1,0.44003194]
[1767373270304,0.28253456,3135.1,3133.1,0.44003194]
[1767373270503,0.28253456,3135.0,3133.1,0.15968]
[1767373270907,0.28253456,3134.9,3133.1,0.15968]
[1767373271703,0.28253456,3134.7,3133.0,0.00808692]
[1767373272105,0.28253456,3134.5,3133.0,0.00808692]
[1767373272407,0.28253456,3134.3,3133.0,0.00808692]
[1767373273512,0.28253456,3134.2,3133.0,0.00808692]
[1767373275915,0.46409,3135.0,3133.0,0.00808692]
[1767373275916,0.28253456,3134.9,3133.1,2.77564337]
[1767373276215,0.28253456,3134.9,3133.2,2.77564337]
[1767373276401,0.28253456,3134.9,3133.1,2.93532337]
[1767373276599,0.28253456,3134.9,3133.1,2.77564337]
[1767373276600,0.28253456,3134.8,3133.1,2.77564337]
[1767373277206,0.28253456,3134.6,3133.1,2.77564337]
[1767373277401,0.28253456,3134.6,3133.0,2.78373029]
[1767373278208,0.28253456,3134.6,3133.0,0.00808692]
[1767373278814,0.44215456,3134.4,3133.0,0.00808692]
[1767373279008,0.58703456,3135.0,3133.0,0.00808692]
[1767373279215,0.58703456,3135.0,3133.1,1.37037319]
[1767373279509,0.58703456,3135.0,3133.4,0.15967]
[1767373279706,0.58703456,3135.0,3133.4,2.93531337]
[1767373279906,0.58703456,3135.0,3133.4,0.15967]
[1767373280304,0.58703456,3135.0,3133.6,1.21069319]
[1767373280305,0.3045,3135.0,3133.6,1.21069319]
[1767373280505,0.3045,3135.0,3133.8,2.77564337]
[1767373281007,0.3045,3135.0,3133.9,0.15964]
[1767373281312,0.28632679,3135.5,3134.0,2.93528337]
[1767373281505,0.00379223,3135.5,3134.2,2.77564337]
[1767373281910,0.15952,3136.4,3134.4,0.43997194]
[1767373282214,0.28253456,3136.3,3135.1,0.00478331]
[1767373282910,0.28532739,3136.3,3135.1,0.00478331]
[1767373283216,0.00279283,3136.3,3135.1,0.00478331]
[1767373283810,0.28253456,3137.3,3135.2,0.15958]
[1767373284111,0.28253456,3137.3,3135.3,4.415]
[1767373284410,0.28253456,3137.3,3135.3,11.67871656]
[1767373284714,0.28663774,3137.3,3135.3,11.68213227]
[1767373285113,0.00410318,3137.3,3135.6,1.49104513]
[1767373285307,0.0137,3137.2,3135.7,0.28035194]
[1767373285611,0.28253456,3138.3,3136.2,0.15952]
[1767373285808,0.28253456,3138.3,3136.9,0.00478331]
[1767373286418,0.28602358,3138.3,3136.9,0.00478331]
[1767373287014,0.28602358,3138.3,3137.0,4.417]
[1767373287318,0.28602358,3138.3,3136.9,0.00478331]
[1767373288211,0.28819378,3138.0,3136.9,0.00478331]
[1767373288411,0.28819378,3137.2,3135.3,3.19441571]
[1767373288712,0.44770378,3136.6,3135.3,0.00341571]
[1767373288917,0.28819378,3136.5,3135.3,0.00341571]
[1767373289304,0.30419699,3136.1,3135.3,0.00341571]
[1767373289513,0.30719476,3136.1,3134.3,4.416]
[1767373289713,0.30719476,3136.1,3133.9,0.15964]
[1767373289714,0.30419699,3136.0,3133.9,0.15964]
[1767373289910,0.30419699,3136.0,3134.0,4.416]
[1767373290116,0.30419699,3136.0,3134.0,8.51259925]
[1767373290308,0.30419699,3136.0,3134.7,0.00478331]
[1767373290508,0.30419699,3136.0,3134.7,0.0072605]
[1767373291012,0.00299777,3136.1,3134.7,0.0072605]
[1767373291618,0.30719476,3136.1,3134.7,0.0072605]
[1767373293720,0.30419699,3135.7,3134.7,0.0072605]
[1767373295617,0.30419699,3135.7,3133.8,0.15965]
[1767373295821,0.30419699,3135.6,3133.5,1.056]
[1767373296221,0.30419699,3135.6,3133.7,0.43803023]
[1767373296725,0.30419699,3135.6,3134.3,0.00478331]
[1767373297117,0.30419699,3135.9,3134.3,0.00478331]
[1767373297523,0.00299777,3136.1,3134.4,4.50487128]
[1767373297723,0.00299777,3136.1,3134.7,0.1596]
[1767373298620,0.00299777,3136.1,3134.6,4.415]
[1767373299020,0.30419699,3137.0,3135.1,0.15958]
[1767373299622,0.30419699,3137.0,3135.2,11.65978489]
[1767373300033,0.00249922,3137.0,3135.2,7.88338023]
[1767373300234,0.00249922,3137.0,3135.3,4.12841457]
[1767373300436,0.00249922,3137.0,3135.4,0.15957]
[1767373300734,0.00249922,3137.0,3135.5,11.73441457]
[1767373300935,0.00478331,3136.6,3135.9,0.00478331]
[1767373301235,0.00249922,3137.0,3135.9,0.16725581]
[1767373301538,0.30419699,3138.1,3136.3,0.15952]
[1767373302534,0.30799598,3138.1,3136.4,4.416]
[1767373302736,0.30799598,3138.1,3136.0,4.416]
[1767373302737,0.30419699,3137.9,3136.0,4.416]
[1767373303033,0.30419699,3137.9,3135.9,0.00771581]
[1767373304537,0.00379899,3138.1,3136.2,0.43791023]
[1767373304836,0.00379899,3138.1,3136.3,4.13804002]
[1767373305038,0.00379899,3138.1,3136.3,4.29756002]
[1767373306641,0.00379899,3138.1,3136.4,7.605]
[1767373306838,0.00379899,3138.1,3136.3,4.29756002]
[1767373307146,0.00379899,3138.1,3136.4,7.605]
[1767373307529,0.00379899,3138.1,3136.5,4.5039323]
[1767373307728,0.00379899,3138.1,3136.6,0.43788023]
[1767373308134,0.00379899,3138.1,3136.7,4.22555207]
[1767373308533,0.00379899,3138.1,3136.8,0.15949]
[1767373309944,0.00379899,3138.1,3136.1,0.43791023]
[1767373310245,0.30799598,3138.1,3136.2,4.1363512]
[1767373310547,0.30799598,3138.1,3136.3,7.604]
[1767373311247,0.00379899,3138.1,3136.4,4.416]
[1767373311750,0.00379899,3138.1,3136.5,4.26739008]
[1767373311946,0.00379899,3138.1,3136.5,4.54577031]
[1767373312143,0.00379899,3138.1,3136.5,0.43789023]
[1767373312342,0.00379899,3138.1,3136.6,4.416]
[1767373312739,0.00379899,3138.1,3136.5,0.15951]
[1767373312938,0.00379899,3138.1,3136.6,4.416]
[1767373312939,0.30799598,3138.1,3136.6,4.416]
[1767373313636,0.00379899,3138.1,3136.6,4.416]
[1767373314446,0.00379899,3138.1,3136.7,0.1595]
[1767373315050,0.00379899,3138.1,3136.8,3.861]
[1767373315348,0.30799598,3138.1,3136.3,0.15952]
[1767373315945,0.30419699,3138.0,3136.3,0.15952]
[1767373316444,0.15944,3137.9,3135.9,0.00771581]
[1767373316652,0.30419699,3137.7,3135.9,0.00771581]
[1767373317844,0.15945,3137.8,3135.9,0.00771581]
[1767373318744,0.00379899,3138.1,3135.9,0.00771581]
[1767373318745,0.30419699,3137.6,3135.9,0.00771581]
[1767373320636,0.2879808,3137.5,3135.9,0.00771581]
[1767373321349,0.15946,3137.6,3135.9,0.00771581]
[1767373321550,0.29177979,3138.1,3136.0,0.15954]
[1767373322755,0.2879808,3137.6,3135.9,2.23071581]
[1767373322940,0.2879808,3137.3,3135.9,0.00771581]
[1767373323145,0.4474708,3137.0,3135.9,0.00771581]
[1767373323352,0.2879808,3136.9,3135.9,0.00771581]
[1767373323850,0.3187,3137.2,3135.9,0.00771581]
[1767373325250,0.3187,3137.2,3135.9,0.16725581]
[1767373325449,0.3187,3137.2,3136.0,4.415]
[1767373326050,0.3187,3137.2,3136.0,4.57454]
[1767373326252,0.29177979,3138.1,3136.4,0.15952]
[1767373326446,0.29177979,3138.1,3136.1,4.21714031]
[1767373326447,0.29177979,3138.1,3136.5,0.15951]
[1767373326651,0.29177979,3138.1,3136.5,4.21065901]
[1767373326950,0.29177979,3138.1,3136.5,0.15951]
[1767373327746,0.29177979,3138.1,3136.2,4.415]
[1767373329456,0.29177979,3138.1,3136.2,4.57453]
[1767373330758,0.2879808,3137.7,3135.9,0.00771581]
[1767373331851,0.2879808,3137.4,3135.9,0.00771581]
[1767373332051,0.00379899,3138.1,3135.9,0.00771581]
[1767373332052,0.2879808,3137.0,3135.9,0.00771581]
[1767373332555,0.2879808,3136.9,3135.1,0.15958]
[1767373332751,0.2879808,3136.9,3135.3,0.15957]
[1767373332952,0.2879808,3136.9,3135.0,4.417]
[1767373332953,0.2879808,3136.9,3135.1,4.15947406]
[1767373333148,0.2879808,3136.9,3135.5,0.15956]
[1767373333354,0.00478331,3136.5,3135.9,0.00478331]
[1767373335560,0.15946,3137.6,3135.9,0.00478331]
[1767373335561,0.2879808,3137.5,3135.9,0.00478331]
[1767373336457,0.2879808,3137.5,3136.0,0.15954]
[1767373336651,0.2879808,3137.5,3136.0,2.93518337]
[1767373336957,0.16322899,3138.1,3136.0,2.93518337]
[1767373336958,0.2879808,3138.0,3136.3,0.15952]
[1767373337151,0.2879808,3138.0,3136.4,4.417]
[1767373337953,0.2879808,3138.0,3136.2,2.77564337]
[1767373338165,0.2879808,3138.0,3136.2,4.417]
[1767373338660,0.00379899,3138.1,3135.9,0.00478331]
[1767373338661,0.2879808,3137.8,3135.9,0.00478331]
[1767373338863,0.4474308,3137.8,3135.9,0.00478331]
[1767373339053,0.2879808,3137.7,3135.9,0.00478331]
[1767373339254,0.2879808,3137.4,3135.9,0.00478331]
[1767373340260,0.4474508,3137.3,3135.9,0.00478331]
[1767373340460,0.2879808,3137.0,3135.9,0.00478331]
[1767373341664,0.2879808,3137.0,3135.5,0.0035764]
[1767373341867,0.4474708,3137.0,3135.5,0.0035764]
[1767373342065,0.2879808,3136.9,3135.5,0.0035764]
[1767373342258,0.2879808,3136.6,3135.1,2.77564337]
[1767373342562,0.2879808,3136.5,3134.8,2.77564337]
[1767373342764,0.2879808,3135.9,3134.6,7.19264337]
[1767373342964,0.2879808,3135.9,3134.6,4.417]
[1767373343263,0.2913024,3135.9,3134.6,4.41993236]
[1767373343865,0.2913024,3135.9,3134.9,0.00478331]
[1767373345459,0.0033216,3135.9,3134.9,0.00478331]
[1767373346064,0.2913024,3135.9,3134.9,4.42378331]
[1767373346467,0.2913024,3135.9,3134.9,0.00478331]
[1767373347564,0.4508424,3135.9,3134.9,0.00478331]
[1767373347760,0.29175738,3135.8,3134.9,0.00478331]
[1767373351576,0.29175738,3135.8,3134.6,0.00293236]
[1767373352568,0.29175738,3135.8,3134.9,0.00478331]
[1767373352869,0.39145687,3136.8,3135.0,4.57959]
[1767373353173,0.39145687,3136.8,3135.1,2.77564337]
[1767373353576,0.29865687,3136.7,3135.1,2.77564337]
[1767373353775,0.00478331,3136.2,3135.1,2.93522337]
[1767373354380,0.00478331,3136.2,3135.2,2.77564337]
[1767373354672,0.3027338,3136.7,3135.2,2.77564337]
[1767373355175,0.0928,3136.8,3135.6,3.98330125]
[1767373355372,0.29865687,3137.4,3136.1,1.36718788]
[1767373355678,0.00478331,3137.1,3136.2,8.52032918]
[1767373355869,0.29865687,3137.4,3136.3,0.00478331]
[1767373356196,0.15941,3138.5,3136.3,0.00478331]
[1767373356197,0.29865687,3138.0,3136.6,1.20765788]
[1767373356379,0.29865687,3139.1,3136.6,1.20765788]
[1767373356570,0.29865687,3138.9,3136.8,0.1595]
[1767373357074,0.29865687,3138.9,3136.8,0.16311033]
[1767373357380,0.30256043,3138.9,3136.8,0.16311033]
[1767373357672,0.29865687,3138.8,3136.8,0.00361033]
[1767373357875,0.45805687,3138.8,3136.8,0.00361033]
[1767373358064,0.29865687,3138.7,3136.8,4.42961033]
[1767373358468,0.29865687,3138.7,3136.8,0.00361033]
[1767373359074,0.15943,3138.1,3136.8,0.00361033]
[1767373359379,0.29865687,3137.8,3136.3,0.00478331]
[1767373359677,0.45810687,3137.8,3136.3,0.00478331]
[1767373359878,0.45810687,3137.7,3136.3,0.00478331]
[1767373360079,0.29865687,3137.6,3136.3,0.00478331]
[1767373360273,0.29865687,3137.3,3135.3,2.77564337]
[1767373360479,0.45813687,3137.1,3135.1,2.77564337]
[1767373360778,0.29865687,3137.0,3135.0,4.425]
[1767373361180,0.00478331,3136.3,3135.7,0.00478331]
[1767373361375,0.29865687,3137.0,3135.7,0.00810939]
[1767373362286,0.30149883,3137.0,3135.7,0.00810939]
[1767373366577,0.30149883,3137.0,3135.0,3.90280433]
[1767373366578,0.29865687,3136.6,3135.0,2.77564337]
[1767373366778,0.00284196,3137.0,3134.5,4.06241433]
[1767373366779,0.29865687,3136.3,3134.9,2.77564337]
[1767373366984,0.29865687,3136.3,3134.6,2.77564337]
[1767373367579,0.00478331,3135.8,3135.1,0.00478331]
[1767373367887,0.30344018,3135.8,3135.1,0.00478331]
[1767373368580,3.189,3136.7,3135.1,0.00478331]
[1767373368581,0.29865687,3136.7,3135.1,5.63744119]
[1767373368774,0.29865687,3136.7,3135.1,8.41308456]
[1767373368975,0.29865687,3136.7,3135.1,7.20542668]
[1767373369179,0.29865687,3136.7,3135.1,4.42978331]
[1767373370980,0.29865687,3136.7,3135.1,5.63744119]
[1767373371285,0.29865687,3136.7,3135.2,4.33136125]
[1767373372485,0.00284196,3137.0,3135.2,4.33136125]
[1767373373187,0.00284196,3137.0,3135.4,0.15957]
[1767373373384,0.00284196,3137.0,3135.6,1.20765788]
[1767373374886,0.00284196,3137.0,3135.3,3.189]
[1767373374887,0.30149883,3137.0,3135.3,3.189]
[1767373375484,0.30149883,3137.0,3135.3,3.34857]
[1767373378576,0.30149883,3137.0,3135.3,3.189]
[1767373378781,0.30149883,3137.0,3135.1,4.42978331]
[1767373378983,0.29865687,3136.9,3135.1,4.42978331]
[1767373379181,0.45814687,3136.9,3135.1,4.42978331]
[1767373379382,0.00284196,3137.0,3135.1,7.20542668]
[1767373379383,0.30050962,3136.4,3135.1,7.20542668]
[1767373379578,0.30050962,3136.3,3135.1,0.00478331]
[1767373380093,0.30050962,3136.2,3135.1,0.00478331]
[1767373380284,3.189,3136.7,3134.6,7.21098349]
[1767373380285,0.30050962,3135.7,3134.6,0.00334012]
[1767373381285,0.30050962,3135.6,3134.6,0.00334012]
[1767373381486,0.30529293,3135.4,3134.6,0.00334012]
[1767373382190,0.30529293,3135.4,3133.9,4.432]
[1767373382487,0.30529293,3135.4,3134.3,0.00478331]
[1767373383193,0.30529293,3135.4,3134.3,0.00767916]
[1767373383990,0.30050962,3135.2,3133.7,2.77564337]
[1767373384293,0.30050962,3135.1,3133.1,9.8684477]
[1767373384484,0.30050962,3135.1,3133.1,5.96564337]
[1767373385192,0.30050962,3135.1,3133.8,0.00478331]
[1767373386085,0.30050962,3135.0,3133.8,0.00478331]
[1767373386792,0.30050962,3134.9,3133.8,0.00478331]
[1767373388194,0.00478331,3135.4,3133.8,4.43878331]
[1767373388390,0.00478331,3135.4,3133.9,1.20765788]
[1767373388893,0.00478331,3135.4,3133.8,0.00478331]
[1767373390088,0.30050962,3135.3,3133.8,0.00478331]
[1767373391390,0.30050962,3135.1,3133.8,0.00478331]
[1767373391589,0.61940962,3135.2,3133.8,0.00478331]
[1767373391895,0.30050962,3135.1,3133.8,0.00478331]
[1767373393291,0.3189,3135.2,3133.8,0.00478331]
[1767373394895,0.3189,3135.2,3133.8,1.21244119]
[1767373395102,0.00478331,3135.4,3134.0,0.15964]
[1767373396300,0.00478331,3135.4,3134.1,4.434]
[1767373396799,0.30529293,3135.4,3134.1,4.434]
[1767373397395,0.30529293,3135.4,3134.0,0.15964]
[1767373397897,0.30050962,3135.2,3133.8,0.00478331]
[1767373399197,0.30050962,3134.9,3133.8,0.00478331]
[1767373401396,0.52680962,3135.3,3133.8,0.00478331]
[1767373401600,0.30050962,3135.2,3133.8,0.00478331]
[1767373403200,0.2263,3135.3,3133.8,0.16442331]
[1767373403391,0.2263,3135.3,3134.0,0.15963]
[1767373403592,0.2263,3135.3,3134.1,0.15963]
[1767373403797,0.30050962,3136.2,3134.4,0.15962]
[1767373403997,0.30050962,3136.2,3134.5,0.15961]
[1767373404800,0.00478331,3135.7,3134.5,0.15961]
[1767373405398,0.30050962,3136.9,3134.5,3.191]
[1767373405596,0.30050962,3137.6,3136.1,0.15953]
[1767373405906,0.30050962,3137.6,3136.2,4.433]
[1767373406109,0.30050962,3138.1,3136.2,5.64065788]
[1767373406398,0.00478331,3137.5,3136.8,0.00478331]
[1767373406604,0.00751977,3137.5,3136.8,0.00760297]
[1767373406803,0.30050962,3138.1,3136.8,0.00760297]
[1767373407309,0.32419174,3137.9,3136.8,0.00760297]
[1767373407697,0.32419174,3137.8,3136.0,2.174]
[1767373407898,0.15945,3137.7,3135.3,0.15957]
[1767373408098,0.32419174,3137.6,3135.3,4.43657]
[1767373408501,0.32419174,3137.3,3134.6,1.36726788]
[1767373408808,0.00478331,3136.3,3135.6,0.00478331]
[1767373409006,0.32897505,3136.3,3135.6,0.00478331]
[1767373409598,0.00478331,3136.3,3135.6,0.00478331]
[1767373410802,0.29872573,3136.9,3135.6,6.00478331]
[1767373410999,0.29872573,3136.9,3135.6,0.00478331]
[1767373411199,0.29872573,3136.9,3135.7,3.382]
[1767373411400,0.0041053,3137.3,3135.6,4.43578331]
[1767373412715,0.15945,3137.8,3135.6,0.00478331]
[1767373413009,0.0926,3138.0,3136.8,0.15949]
[1767373413198,0.0926,3138.0,3136.9,2.77049]
[1767373413705,0.09534946,3138.0,3136.9,2.77049]
[1767373414005,0.09534946,3138.0,3136.9,2.77344397]
[1767373414505,0.09534946,3138.0,3136.9,0.16244397]
[1767373416005,0.39407519,3138.0,3136.9,0.00295397]
[1767373416204,0.29872573,3137.9,3136.1,0.15953]
[1767373417301,0.29872573,3137.9,3136.1,0.00401271]
[1767373417702,0.29872573,3137.7,3136.1,0.00401271]
[1767373417901,0.29872573,3137.7,3135.6,0.00478331]
[1767373419012,0.29872573,3137.7,3135.6,0.00838053]
[1767373420204,0.29872573,3137.7,3135.7,0.15955]
[1767373420707,0.29872573,3137.7,3135.8,0.15955]
[1767373420912,0.29872573,3137.7,3135.9,0.15954]
[1767373421909,0.09534946,3138.0,3136.3,0.15952]
[1767373422098,0.09534946,3138.0,3136.4,0.15952]
[1767373422301,0.09534946,3138.0,3136.5,0.15951]
[1767373422913,0.39407519,3138.0,3136.5,0.15951]
[1767373424405,0.29872573,3137.9,3135.9,0.15954]
[1767373424606,0.29872573,3137.9,3136.1,4.428]
[1767373425309,0.29872573,3137.9,3136.0,0.15954]
[1767373426206,0.29872573,3137.7,3135.6,2.48994053]
[1767373426407,0.29872573,3137.7,3135.7,0.15955]
[1767373427009,0.29872573,3137.7,3135.8,4.11704455]
[1767373427210,0.29872573,3137.7,3136.1,0.15953]
[1767373427906,0.29872573,3137.7,3136.3,0.15952]
[1767373428116,0.09534946,3138.0,3136.7,0.1595]
[1767373428807,0.39407519,3138.0,3136.5,4.427]
[1767373429011,0.39407519,3138.0,3136.4,4.427]
[1767373429217,0.29872573,3137.9,3136.3,0.15952]
[1767373431713,0.09534946,3138.0,3136.4,0.15952]
[1767373431914,0.09534946,3138.0,3136.0,4.73300938]